bitfinex/quotes_SOLUSD_20260208
["timestamp","ask_amount","ask_price","bid_price","bid_amount"]
[1770538925289,2.27191701,87.372,87.343,2.2432232]
[1770538927013,4.23428728,87.364,87.343,2.2432232]
[1770538927308,4.23428728,87.364,87.345,2.49963203]
[1770538928108,4.23428728,87.363,87.345,2.49963203]
[1770538928709,2.48075735,87.382,87.351,2.49963203]
[1770538929006,2.48075735,87.382,87.353,2.49963203]
[1770538929188,4.23428728,87.379,87.353,2.49963203]
[1770538929388,2.48075735,87.388,87.36,10.79681003]
[1770538929589,2.48075735,87.388,87.361,2.49963203]
[1770538930196,4.23428728,87.385,87.361,2.49963203]
[1770538930389,6.71504463,87.383,87.361,2.49963203]
[1770538930708,4.23428728,87.379,87.354,2.49963203]
[1770538930887,4.23428728,87.373,87.344,2.49963203]
[1770538931093,4.23428728,87.363,87.338,2.49963203]
[1770538931506,4.23428728,87.362,87.338,2.49963203]
[1770538931711,6.71504463,87.362,87.338,2.49963203]
[1770538932429,6.71504463,87.362,87.34,10.79681003]
[1770538932721,4.23428728,87.361,87.341,2.49963203]
[1770538933712,4.23428728,87.36,87.341,2.49963203]
[1770538934913,4.23428728,87.359,87.343,2.53754698]
[1770538935105,4.23428728,87.359,87.342,11.44924549]
[1770538935415,4.23428728,87.357,87.335,2.53754698]
[1770538935621,4.23428728,87.357,87.342,11.44924549]
[1770538936111,2.37843808,87.359,87.342,11.44924549]
[1770538936416,2.37843808,87.369,87.343,2.53754698]
[1770538937218,6.61272536,87.368,87.344,11.44898333]
[1770538937415,6.61272536,87.368,87.336,28.62497952]
[1770538937416,0.51716852,87.358,87.327,2.53754698]
[1770538938318,4.7514558,87.358,87.327,2.53754698]
[1770538938720,0.52223824,87.357,87.338,11.44965153]
[1770538939518,4.75652552,87.357,87.333,2.53754698]
[1770538939821,0.52724973,87.356,87.333,2.53754698]
[1770538940395,0.52724973,87.356,87.31,61.2]
[1770538940396,4.23428728,87.339,87.311,2.53754698]
[1770538940901,4.23428728,87.338,87.311,2.53754698]
[1770538941309,4.23428728,87.338,87.31,10.79681003]
[1770538941310,4.23428728,87.338,87.32,11.45208117]
[1770538941699,62.34886516,87.385,87.321,2.53754698]
[1770538941700,0.53710068,87.355,87.321,2.53754698]
[1770538942516,0.53710068,87.355,87.323,2.53754698]
[1770538943316,28.61122475,87.379,87.261,46.62086188]
[1770538943317,4.23428728,87.358,87.332,11.45055649]
[1770538943504,4.23428728,87.358,87.333,2.53754698]
[1770538943700,0.54690102,87.379,87.341,2.53754698]
[1770538944420,4.7811883,87.379,87.341,2.53754698]
[1770538945621,4.23428728,87.379,87.343,2.53754698]
[1770538945798,4.23428728,87.369,87.343,2.53754698]
[1770538946005,4.23428728,87.368,87.343,2.53754698]
[1770538947109,4.23428728,87.379,87.343,2.53754698]
[1770538947514,4.23428728,87.379,87.345,2.53754698]
[1770538948121,4.23428728,87.378,87.351,2.53754698]
[1770538948713,10.99681003,87.39,87.344,40.07144165]
[1770538948714,0.2,87.39,87.361,2.53754698]
[1770538949827,0.2,87.39,87.363,2.53754698]
[1770538952528,4.23428728,87.389,87.364,11.44636234]
[1770538953719,16.27084415,87.389,87.363,2.53754698]
[1770538953915,4.82775635,87.389,87.364,11.44636234]
[1770538954102,4.82775635,87.389,87.365,2.53754698]
[1770538955428,4.23428728,87.388,87.367,2.53754698]
[1770538956227,0.2,87.39,87.367,2.53754698]
[1770538957230,4.23428728,87.389,87.367,2.53754698]
[1770538957910,4.23428728,87.388,87.368,11.44583829]
[1770538959030,0.2,87.39,87.368,11.44583829]
[1770538960028,1e-08,87.39,87.372,2.65444443]
[1770538960211,4.23428728,87.405,87.373,2.65444443]
[1770538961125,0.62703793,87.408,87.373,2.65444443]
[1770538962830,0.62703793,87.408,87.375,2.65444443]
[1770538963833,4.23428728,87.406,87.375,2.65444443]
[1770538964034,4.87698146,87.406,87.375,2.65444443]
[1770538964206,4.23428728,87.399,87.375,2.65444443]
[1770538964405,4.87698146,87.399,87.375,2.65444443]
[1770538964626,4.23428728,87.389,87.375,2.65444443]
[1770538964811,0.2,87.41,87.356,28.61844564]
[1770538964812,4.23428728,87.388,87.366,2.65444443]
[1770538965126,4.23428728,87.388,87.376,11.44479033]
[1770538965435,0.6464965,87.409,87.377,2.65444443]
[1770538965632,0.2,87.41,87.381,2.65444443]
[1770538965838,4.23428728,87.409,87.381,2.65444443]
[1770538966045,1e-08,87.41,87.391,2.65444443]
[1770538966420,0.1,87.44,87.401,2.65444443]
[1770538966421,4.12947754,87.44,87.401,2.65444443]
[1770538966624,0.1,87.44,87.412,11.44007687]
[1770538966826,4.23428728,87.439,87.413,2.65444443]
[1770538967919,4.8882579,87.439,87.413,2.65444443]
[1770538968335,0.65764342,87.438,87.414,11.43981513]
[1770538968537,4.23428728,87.438,87.415,2.65444443]
[1770538969613,28.56712912,87.514,87.43,10.78226592]
[1770538969817,28.56712912,87.514,87.42,10.78226592]
[1770538969818,4.23428728,87.484,87.47,10.78226592]
[1770538970131,5.97052482,87.592,87.473,5.13032502]
[1770538970441,2.69426816,87.541,87.501,39.99954285]
[1770538970609,2.69426816,87.541,87.51,10.78226592]
[1770538970810,2.69426816,87.573,87.53,10.78226592]
[1770538971015,4.23428728,87.572,87.54,10.78226592]
[1770538971225,4.23428728,87.564,87.53,10.78226592]
[1770538971424,4.23428728,87.558,87.52,10.78226592]
[1770538971631,6.92855544,87.558,87.52,10.78226592]
[1770538971935,4.23428728,87.541,87.51,10.78226592]
[1770538972138,4.23428728,87.541,87.501,39.99954285]
[1770538972333,10.78226592,87.54,87.5,10.78226592]
[1770538972628,11.41565542,87.599,87.531,2.65444443]
[1770538972829,86.86739037,87.667,87.498,5.13032502]
[1770538972830,4.23428728,87.598,87.561,2.65444443]
[1770538973012,10.78226592,87.62,87.581,2.65444443]
[1770538973336,10.78226592,87.6,87.56,10.78226592]
[1770538973543,10.78226592,87.59,87.492,57.24871078]
[1770538973732,10.78226592,87.58,87.543,2.65444443]
[1770538973921,4.23428728,87.579,87.543,2.65444443]
[1770538974115,4.23428728,87.559,87.523,5.13032502]
[1770538974322,4.23428728,87.559,87.521,2.65444443]
[1770538974521,10.78226592,87.56,87.52,10.78226592]
[1770538974522,4.23428728,87.557,87.523,2.65444443]
[1770538974711,6.78824615,87.553,87.523,2.65444443]
[1770538974910,4.23428728,87.549,87.523,2.65444443]
[1770538975113,4.23428728,87.547,87.522,11.42569868]
[1770538975355,4.23428728,87.547,87.498,5.13032502]
[1770538975356,2.55395887,87.534,87.507,11.42754955]
[1770538975538,4.23428728,87.519,87.492,2.65444443]
[1770538975830,4.23428728,87.511,87.485,11.43044936]
[1770538976025,4.23428728,87.509,87.489,11.43000834]
[1770538976421,5.36086188,87.553,87.468,5.13032502]
[1770538976422,7.17484019,87.606,87.558,25.81782851]
[1770538976618,68.36365093,87.766,87.558,25.81782851]
[1770538976619,28.507108,87.698,87.558,25.81782851]
[1770538976935,7.23180372,87.704,87.661,0.05738475]
[1770538977110,7.23180372,87.704,87.663,0.05738475]
[1770538977312,6.99571277,87.716,87.673,0.05738475]
[1770538977622,2.79011786,87.709,87.642,5.36086188]
[1770538977831,2.79011786,87.709,87.615,5.36086188]
[1770538977832,2.79011786,87.709,87.67,10.78226592]
[1770538978139,11.40016872,87.718,87.66,10.78226592]
[1770538978321,4.23428728,87.717,87.605,5.36086188]
[1770538978528,11.39961362,87.723,87.641,2.65444443]
[1770538978824,11.39795976,87.735,87.67,10.78226592]
[1770538979030,10.78226592,87.78,87.691,2.65444443]
[1770538979230,10.78226592,87.78,87.701,2.65444443]
[1770538979435,4.23428728,87.759,87.711,2.65444443]
[1770538979615,4.23428728,87.749,87.721,2.65444443]
[1770538980237,11.39461522,87.761,87.697,5.13032502]
[1770538980238,2.55395887,87.799,87.722,2.65444443]
[1770538980441,2.55395887,87.774,87.714,2.65444443]
[1770538980619,2.55395887,87.759,87.714,2.65444443]
[1770538980819,2.55395887,87.77,87.721,2.65444443]
[1770538981021,2.55395887,87.769,87.721,2.65444443]
[1770538981320,2.55395887,87.749,87.71,2.65444443]
[1770538981637,2.55395887,87.739,87.703,5.13032502]
[1770538981841,2.55395887,87.729,87.694,2.65444443]
[1770538982048,2.55395887,87.774,87.7,10.78226592]
[1770538982343,2.55395887,87.759,87.716,2.65444443]
[1770538982638,2.55395887,87.729,87.681,11.40488834]
[1770538982867,11.39614126,87.749,87.624,41.16]
[1770538982868,2.55395887,87.709,87.67,13.43671035]
[1770538983158,13.33622479,87.7,87.661,2.65444443]
[1770538983330,2.55395887,87.699,87.661,14.06194723]
[1770538983519,2.55395887,87.699,87.66,10.78226592]
[1770538983520,2.55395887,87.699,87.663,2.65444443]
[1770538984023,13.33622479,87.71,87.672,2.65444443]
[1770538984217,13.33622479,87.71,87.671,11.40628029]
[1770538984218,10.78226592,87.73,87.691,2.65444443]
[1770538984530,10.78226592,87.72,87.691,2.65444443]
[1770538984728,2.55395887,87.729,87.7,10.78226592]
[1770538984927,13.33622479,87.74,87.701,2.65444443]
[1770538985230,2.55395887,87.729,87.691,2.65444443]
[1770538985434,2.55395887,87.729,87.594,45.66477489]
[1770538985435,2.55395887,87.709,87.675,11.40570911]
[1770538985629,2.55395887,87.709,87.675,2.65444443]
[1770538985829,2.8062145,87.689,87.65,10.78226592]
[1770538986027,2.8062145,87.679,87.662,91.06932907]
[1770538986335,2.8062145,87.679,87.644,2.91567968]
[1770538986537,11.40563971,87.676,87.633,2.91567968]
[1770538986744,10.78226592,87.67,87.633,2.91567968]
[1770538986928,10.78226592,87.67,87.637,2.91567968]
[1770538987124,11.40536964,87.678,87.637,2.91567968]
[1770538987335,10.78226592,87.67,87.637,2.91567968]
[1770538987522,10.78226592,87.66,87.637,2.91567968]
[1770538987942,10.78226592,87.67,87.637,2.91567968]
[1770538988330,10.78226592,87.66,87.637,2.91567968]
[1770538988841,10.78226592,87.66,87.624,44.07567968]
[1770538989044,10.78226592,87.65,87.625,2.91567968]
[1770538989418,10.73058488,87.65,87.625,2.91567968]
[1770538989624,10.73058488,87.64,87.624,41.16]
[1770538989924,10.73058488,87.64,87.615,14.32915878]
[1770538990227,10.73058488,87.64,87.616,2.91567968]
[1770538990429,10.73058488,87.64,87.623,11.41251211]
[1770538990740,10.73058488,87.64,87.616,2.91567968]
[1770538991046,0.47199443,87.629,87.584,2.91567968]
[1770538991224,0.47199443,87.669,87.591,2.91567968]
[1770538991424,0.47199443,87.652,87.591,2.91567968]
[1770538991941,10.73058488,87.62,87.591,2.91567968]
[1770538992443,10.73058488,87.63,87.601,2.91567968]
[1770538992633,10.73058488,87.61,87.577,2.91567968]
[1770538992832,10.73058488,87.61,87.584,2.91567968]
[1770538993034,16.09144676,87.66,87.586,2.91567968]
[1770538993035,11.41177757,87.629,87.586,2.91567968]
[1770538993346,10.73058488,87.61,87.586,2.91567968]
[1770538993550,10.73058488,87.62,87.586,2.91567968]
[1770538993730,11.41174725,87.629,87.591,3.07633677]
[1770538994041,10.73058488,87.62,87.591,3.07633677]
[1770538994256,10.73058488,87.63,87.591,3.07633677]
[1770538994458,0.67477594,87.637,87.591,3.07633677]
[1770538994650,10.73058488,87.64,87.601,3.07633677]
[1770538995038,11.41174725,87.629,87.601,3.07633677]
[1770538995251,10.73058488,87.62,87.601,3.07633677]
[1770538995450,3.26076844,87.619,87.588,3.07633677]
[1770538995957,39.94111538,87.629,87.565,3.07633677]
[1770538995958,3.26076844,87.599,87.565,3.07633677]
[1770538996164,3.26076844,87.589,87.565,3.07633677]
[1770538996860,3.26076844,87.589,87.55,10.73058488]
[1770538996861,3.26076844,87.569,87.541,3.17538216]
[1770538997541,3.26076844,87.569,87.551,3.17538216]
[1770538997953,3.26076844,87.568,87.551,3.17538216]
[1770538998853,3.26076844,87.567,87.541,3.17538216]
[1770538999158,10.73058488,87.59,87.551,3.17538216]
[1770538999358,0.19140027,87.609,87.57,10.73058488]
[1770538999548,10.73058488,87.61,87.571,3.17538216]
[1770538999859,3.26076844,87.609,87.571,3.17538216]
[1770539000052,3.26076844,87.599,87.561,3.17538216]
[1770539000365,3.26076844,87.589,87.561,2.67538216]
[1770539000742,3.26076844,87.589,87.543,11.42295786]
[1770539001053,3.26076844,87.569,87.54,0.2]
[1770539001658,3.26076844,87.559,87.54,0.2]
[1770539002545,3.26076844,87.549,87.515,3.07633677]
[1770539002756,3.26076844,87.549,87.52,13.80692165]
[1770539002953,3.26076844,87.539,87.51,3.07633677]
[1770539003259,3.26076844,87.539,87.511,14.50347164]
[1770539003445,3.26076844,87.539,87.512,3.07633677]
[1770539003962,3.26076844,87.529,87.503,85.06016361]
[1770539004256,11.42361031,87.538,87.473,3.07633677]
[1770539004257,3.26076844,87.509,87.473,3.07633677]
[1770539004763,10.73058488,87.53,87.491,3.07633677]
[1770539005062,39.9826361,87.538,87.491,3.07633677]
[1770539005245,3.26076844,87.529,87.493,3.07633677]
[1770539005444,3.26076844,87.519,87.493,3.07633677]
[1770539005765,3.26076844,87.519,87.492,11.42961642]
[1770539006074,3.26076844,87.519,87.486,14.5066244]
[1770539006248,3.26076844,87.519,87.487,3.07633677]
[1770539006445,3.26076844,87.519,87.492,11.42961642]
[1770539006751,3.26076844,87.519,87.487,3.07633677]
[1770539007463,3.26076844,87.517,87.487,3.07633677]
[1770539008065,3.26076844,87.509,87.476,3.07633677]
[1770539008258,3.26076844,87.499,87.482,11.43081382]
[1770539008461,3.26076844,87.499,87.483,3.07633677]
[1770539009269,3.26076844,87.498,87.483,3.07633677]
[1770539009447,3.26076844,87.498,87.483,2.57633677]
[1770539010347,3.26076844,87.509,87.483,2.57633677]
[1770539010753,3.26076844,87.509,87.484,11.4306616]
[1770539011563,11.42397297,87.536,87.501,3.07633677]
[1770539011966,10.73058488,87.51,87.472,11.43222825]
[1770539012170,10.73058488,87.51,87.476,11.43160746]
[1770539012466,3.26076844,87.509,87.481,3.07633677]
[1770539013260,3.26076844,87.509,87.484,14.50691793]
[1770539014071,3.26076844,87.508,87.485,3.07633677]
[1770539014850,3.26076844,87.519,87.485,3.07633677]
[1770539015051,3.26076844,87.519,87.491,3.07633677]
[1770539015246,57.02687485,87.625,87.484,11.43058116]
[1770539015247,1.86431228,87.559,87.511,3.07633677]
[1770539015473,1.86431228,87.557,87.52,13.80692165]
[1770539015670,10.73058488,87.55,87.521,11.42582922]
[1770539015972,3.26076844,87.549,87.521,11.42582922]
[1770539016172,3.26076844,87.549,87.52,3.07633677]
[1770539016577,1.93875101,87.528,87.494,3.54667286]
[1770539016868,3.26076844,87.519,87.495,11.42922452]
[1770539017059,3.26076844,87.518,87.501,3.54667286]
[1770539017768,1.97533036,87.556,87.511,3.54667286]
[1770539017956,10.73058488,87.55,87.511,3.54667286]
[1770539018279,3.26076844,87.549,87.511,3.54667286]
[1770539019447,2.64212616,87.549,87.511,3.54667286]
[1770539020271,2.02348388,87.549,87.513,3.54667286]
[1770539020455,2.02348388,87.549,87.521,3.54667286]
[1770539020649,2.02348388,87.549,87.531,3.54667286]
[1770539021054,28.54541297,87.58,87.531,3.54667286]
[1770539021055,2.11749424,87.584,87.531,3.54667286]
[1770539021269,10.73058488,87.58,87.541,3.54667286]
[1770539021461,2.11749424,87.584,87.541,3.54667286]
[1770539021770,10.73058488,87.59,87.551,3.54667286]
[1770539022270,10.73058488,87.59,87.553,3.54667286]
[1770539022576,28.53433541,87.614,87.552,11.42178362]
[1770539022577,10.73058488,87.6,87.561,3.54667286]
[1770539022756,10.73058488,87.61,87.571,3.54667286]
[1770539023574,10.73058488,87.61,87.581,3.54667286]
[1770539023959,10.73058488,87.61,87.571,3.54667286]
[1770539023960,12.91673516,87.61,87.571,3.54667286]
[1770539024158,10.73058488,87.61,87.571,3.54667286]
[1770539024361,11.41327711,87.618,87.581,3.54667286]
[1770539024866,13.63316512,87.618,87.581,3.54667286]
[1770539025055,2.25323822,87.609,87.574,11.41882926]
[1770539025376,2.25323822,87.609,87.575,3.54667286]
[1770539026580,2.25323822,87.609,87.577,3.54667286]
[1770539027385,11.41247508,87.624,87.581,3.54667286]
[1770539027680,10.73058488,87.62,87.581,3.54667286]
[1770539029077,22.14355364,87.62,87.583,3.54667286]
[1770539029280,10.73058488,87.61,87.583,3.54667286]
[1770539029463,10.73058488,87.61,87.574,3.54667286]
[1770539029670,10.73058488,87.59,87.556,3.54667286]
[1770539029971,2.38285223,87.599,87.556,3.54667286]
[1770539030178,10.73058488,87.61,87.581,11.41799172]
[1770539030373,11.41232899,87.625,87.591,3.54667286]
[1770539030563,10.73058488,87.62,87.591,3.54667286]
[1770539030874,10.73058488,87.61,87.582,3.54667286]
[1770539031268,11.41372227,87.614,87.582,3.54667286]
[1770539031469,2.41433064,87.619,87.584,3.54667286]
[1770539031774,11.41317994,87.618,87.584,3.54667286]
[1770539032073,2.41433064,87.619,87.584,3.54667286]
[1770539032778,10.73058488,87.6,87.575,3.54667286]
[1770539033662,11.41448269,87.608,87.575,3.54667286]
[1770539034061,2.53666997,87.589,87.542,3.54667286]
[1770539034259,2.53666997,87.569,87.532,3.54667286]
[1770539034568,10.73058488,87.57,87.539,3.54667286]
[1770539034759,10.73058488,87.58,87.544,3.54667286]
[1770539035161,13.29696652,87.57,87.535,3.54667286]
[1770539035370,2.56638164,87.579,87.541,3.54667286]
[1770539035576,2.56638164,87.579,87.54,10.73058488]
[1770539035577,2.56638164,87.579,87.544,3.54667286]
[1770539035987,11.41839274,87.578,87.545,11.42269689]
[1770539036163,11.41839274,87.578,87.546,3.54667286]
[1770539036474,2.64212616,87.577,87.546,3.54667286]
[1770539036679,2.64212616,87.569,87.546,3.54667286]
[1770539037383,2.64212616,87.558,87.535,3.54667286]
[1770539037778,2.64212616,87.558,87.535,14.97054708]
[1770539038085,2.64212616,87.558,87.536,3.54667286]
[1770539038385,2.64212616,87.559,87.536,3.54667286]
[1770539038692,2.64212616,87.559,87.538,3.54667286]
[1770539039185,2.64212616,87.559,87.541,3.54667286]
[1770539039476,10.73058488,87.58,87.541,3.54667286]
[1770539039477,2.64212616,87.558,87.541,3.54667286]
[1770539040386,2.64212616,87.589,87.551,3.54667286]
[1770539040609,2.64212616,87.589,87.561,3.54667286]
[1770539041667,5.37974679,87.569,87.542,11.42308834]
[1770539042071,16.79933053,87.569,87.54,3.54667286]
[1770539042986,2.64212616,87.569,87.54,3.54667286]
[1770539043897,2.64212616,87.568,87.541,3.54667286]
[1770539044200,2.64212616,87.568,87.551,3.54667286]
[1770539044402,2.64212616,87.559,87.529,3.54667286]
[1770539044695,2.64212616,87.559,87.536,3.54667286]
[1770539044869,2.64212616,87.571,87.541,3.54667286]
[1770539045592,2.64212616,87.571,87.549,3.54667286]
[1770539045995,2.8453607,87.585,87.549,3.54667286]
[1770539045996,2.64212616,87.569,87.549,3.54667286]
[1770539047094,2.64212616,87.567,87.549,3.54667286]
[1770539047278,2.64212616,87.555,87.528,11.42487578]
[1770539047595,2.64212616,87.549,87.528,15.12706814]
[1770539048195,2.64212616,87.549,87.532,11.4243664]
[1770539048397,2.64212616,87.548,87.533,3.70219236]
[1770539049374,2.64212616,87.547,87.533,3.70219236]
[1770539049573,10.73058488,87.57,87.534,11.42413233]
[1770539049884,10.73058488,87.57,87.535,3.70219236]
[1770539050382,2.64212616,87.569,87.536,11.42387132]
[1770539050689,14.06172469,87.569,87.537,3.70219236]
[1770539052298,14.06172469,87.569,87.538,11.42361031]
[1770539052601,17.10818914,87.569,87.537,3.70219236]
[1770539053403,17.10818914,87.569,87.538,15.45570134]
[1770539054502,2.64212616,87.559,87.538,4.03209103]
[1770539055493,2.64212616,87.568,87.54,4.03209103]
[1770539056688,2.64212616,87.566,87.54,4.03209103]
[1770539056999,2.64212616,87.559,87.54,4.03209103]
[1770539057185,2.64212616,87.559,87.531,4.03209103]
[1770539057920,2.64212616,87.557,87.531,4.03209103]
[1770539058099,10.75112234,87.55,87.531,4.03209103]
[1770539058406,5.84993849,87.549,87.523,4.03209103]
[1770539058612,2.64212616,87.539,87.501,4.03209103]
[1770539058781,2.64212616,87.537,87.513,11.42684598]
[1770539058980,2.64212616,87.537,87.514,4.03209103]
[1770539059203,2.64212616,87.545,87.514,4.03209103]
[1770539059502,2.64212616,87.543,87.514,4.03209103]
[1770539059703,2.64212616,87.539,87.514,4.03209103]
[1770539060617,14.0656303,87.539,87.514,4.03209103]
[1770539060979,14.0656303,87.539,87.484,5.13032502]
[1770539060980,2.64212616,87.538,87.516,4.03209103]
[1770539061501,28.54901791,87.569,87.531,4.03209103]
[1770539061884,11.41969669,87.568,87.531,4.03209103]
[1770539062083,2.64212616,87.567,87.531,4.03209103]
[1770539062308,2.64212616,87.567,87.541,4.03209103]
[1770539062684,2.64212616,87.567,87.543,4.03209103]
[1770539063104,2.64212616,87.566,87.543,4.03209103]
[1770539064215,2.64212616,87.576,87.545,4.03209103]
[1770539065503,2.64212616,87.559,87.537,4.03209103]
[1770539067794,2.64212616,87.557,87.527,4.03209103]
[1770539068112,2.64212616,87.557,87.531,11.42440116]
[1770539068596,2.64212616,87.557,87.531,15.45649219]
[1770539068993,2.64212616,87.557,87.531,4.03209103]
[1770539069494,2.64212616,87.557,87.531,15.45649821]
[1770539069811,2.64212616,87.559,87.541,4.03209103]
[1770539070421,2.64212616,87.559,87.531,11.42440718]
[1770539070422,2.64212616,87.559,87.534,4.03209103]
[1770539070712,2.64212616,87.569,87.541,4.03209103]
[1770539071124,2.64212616,87.569,87.543,4.03209103]
[1770539071295,2.64212616,87.567,87.543,4.03209103]
[1770539072001,2.64212616,87.565,87.535,4.03209103]
[1770539072208,2.64212616,87.559,87.535,4.03209103]
[1770539072406,2.64212616,87.558,87.539,4.03209103]
[1770539072712,2.64212616,87.558,87.543,4.03209103]
[1770539073307,2.64212616,87.558,87.544,11.42282737]
[1770539073513,2.64212616,87.557,87.545,4.03209103]
[1770539074417,2.64212616,87.573,87.545,4.03209103]
[1770539075514,10.75112234,87.59,87.551,4.03209103]
[1770539075715,10.75112234,87.6,87.561,4.03209103]
[1770539076018,3.56746807,87.599,87.561,4.03209103]
[1770539076316,11.41591198,87.598,87.561,4.03209103]
[1770539076499,2.64212616,87.589,87.561,4.03209103]
[1770539076696,2.64212616,87.579,87.547,4.03987641]
[1770539077104,2.64212616,87.569,87.547,4.03987641]
[1770539077611,3.60300667,87.614,87.551,4.03987641]
[1770539077920,3.60300667,87.606,87.561,4.03987641]
[1770539078414,11.41265892,87.622,87.59,10.75112234]
[1770539078615,7.16773951,87.647,87.61,10.75112234]
[1770539078616,2.64212616,87.635,87.61,10.75112234]
[1770539078824,2.64212616,87.635,87.611,4.03987641]
[1770539079211,2.64212616,87.635,87.621,4.03987641]
[1770539079613,0.1,87.65,87.631,4.03987641]
[1770539081216,0.1,87.66,87.641,4.03987641]
[1770539081720,0.1,87.66,87.623,4.03987641]
[1770539081721,2.64212616,87.657,87.623,4.03987641]
[1770539082423,6.35386946,87.657,87.623,4.03987641]
[1770539082722,2.64212616,87.657,87.623,4.03987641]
[1770539083018,0.1,87.66,87.631,4.03987641]
[1770539083521,0.1,87.66,87.651,4.03987641]
[1770539084509,0.1,87.67,87.651,4.03987641]
[1770539084912,32.31792642,87.698,87.66,10.75112234]
[1770539085110,2.64212616,87.693,87.661,4.03987641]
[1770539085506,2.64212616,87.693,87.671,4.03987641]
[1770539086116,0.1,87.71,87.68,10.75112234]
[1770539086322,0.1,87.71,87.691,4.03987641]
[1770539087322,2.64212616,87.729,87.701,4.03987641]
[1770539087704,2.64212616,87.729,87.7,10.75112234]
[1770539087705,2.64212616,87.729,87.711,4.03987641]
[1770539088422,3.9097433,87.769,87.721,4.03987641]
[1770539088721,10.75112234,87.77,87.731,4.03987641]
[1770539089127,11.39395301,87.766,87.731,4.03987641]
[1770539089323,2.64212616,87.761,87.731,4.03987641]
[1770539089628,2.64212616,87.759,87.731,4.03987641]
[1770539089827,14.03696885,87.759,87.731,4.03987641]
[1770539090125,2.64212616,87.739,87.701,4.03987641]
[1770539090316,39.88194942,87.759,87.706,4.03987641]
[1770539090317,2.64212616,87.758,87.706,4.03987641]
[1770539090522,2.64212616,87.739,87.706,4.03987641]
[1770539090916,2.64212616,87.729,87.711,4.03987641]
[1770539091326,2.64212616,87.739,87.711,4.03987641]
[1770539091819,0.1,87.76,87.731,4.03987641]
[1770539092609,0.1,87.76,87.741,4.03987641]
[1770539093111,11.39120454,87.788,87.751,4.03987641]
[1770539093312,11.39038535,87.794,87.76,10.75112234]
[1770539093514,2.64212616,87.793,87.77,14.79099875]
[1770539093719,2.64212616,87.793,87.771,4.03987641]
[1770539094330,2.64212616,87.792,87.771,4.03987641]
[1770539094631,2.64212616,87.792,87.773,4.03987641]
[1770539095228,2.64212616,87.789,87.764,4.03987641]
[1770539095449,2.64212616,87.779,87.752,4.03987641]
[1770539095728,10.75112234,87.78,87.752,4.03987641]
[1770539095729,2.64212616,87.778,87.752,4.03987641]
[1770539095936,2.64212616,87.769,87.743,4.03987641]
[1770539096232,2.64212616,87.769,87.735,4.03987641]
[1770539096437,2.64212616,87.769,87.736,4.03987641]
[1770539096811,2.64212616,87.776,87.741,4.03987641]
[1770539097012,2.64212616,87.776,87.751,4.03987641]
[1770539097334,10.75112234,87.81,87.771,4.03987641]
[1770539097645,10.75112234,87.8,87.771,4.03987641]
[1770539098143,2.64212616,87.797,87.771,4.03987641]
[1770539098345,3.9097433,87.895,87.79,10.75112234]
[1770539098631,50.0579415,126.0,87.841,4.03987641]
[1770539098632,10.75112234,87.88,87.841,4.03987641]
[1770539099021,10.75112234,87.89,87.841,4.03987641]
[1770539099237,10.75112234,87.87,87.831,4.03987641]
[1770539099420,10.75112234,87.86,87.831,4.03987641]
[1770539099619,10.85112234,87.87,87.831,4.03987641]
[1770539100152,10.75112234,87.89,87.852,4.03987641]
[1770539100718,15.04662304,87.89,87.852,4.03987641]
[1770539100924,10.75112234,87.88,87.852,4.03987641]
[1770539101120,4.2955007,87.889,87.852,4.03987641]
[1770539101640,4.2955007,87.898,87.852,4.03987641]
[1770539101834,4.2955007,87.898,87.851,11.38290969]
[1770539101835,7.14104911,87.924,87.891,4.03987641]
[1770539102144,4.2955007,87.929,87.901,11.37643485]
[1770539102324,4.2955007,87.939,87.902,4.03987641]
[1770539102523,4.2955007,87.952,87.911,4.03987641]
[1770539102722,4.2955007,87.952,87.851,5.36086188]
[1770539102723,4.2955007,87.939,87.895,11.37713871]
[1770539102957,10.75112234,87.92,87.88,10.75112234]
[1770539103259,10.75112234,87.92,87.852,56.92124968]
[1770539103260,4.2955007,87.912,87.85,10.75112234]
[1770539103425,10.75112234,87.89,87.85,10.75112234]
[1770539103741,5.13032502,87.946,87.84,10.75112234]
[1770539103742,10.75112234,87.88,87.84,10.75112234]
[1770539104252,11.37928287,87.879,87.841,11.38420555]
[1770539104427,10.75112234,87.88,87.841,11.38420555]
[1770539104629,10.75112234,87.87,87.83,10.75112234]
[1770539104935,10.75112234,87.87,87.833,4.03987641]
[1770539105133,39.82749006,87.879,87.838,4.03987641]
[1770539105336,11.37928287,87.879,87.842,4.03987641]
[1770539105539,11.37928287,87.879,87.85,10.75112234]
[1770539105933,11.37928287,87.879,87.842,4.03987641]
[1770539106247,11.37928287,87.879,87.844,4.3361375]
[1770539106721,15.74281193,87.879,87.844,4.3361375]
[1770539107451,10.75112234,87.87,87.833,4.3361375]
[1770539107626,4.36352906,87.878,87.841,4.3361375]
[1770539108029,4.36352906,87.869,87.831,4.3361375]
[1770539108225,4.36352906,87.894,87.852,4.3361375]
[1770539108441,10.75112234,87.86,87.828,4.3361375]
[1770539108649,10.75112234,87.86,87.83,11.38556921]
[1770539108946,10.75112234,87.9,87.831,4.3361375]
[1770539108947,10.75112234,87.87,87.831,4.3361375]